[Event "AUT 2nd BL Ost 2021-22"]
[Site "Austria"]
[Date "2022.04.04"]
[Round "11.1"]
[White "Baumegger, Siegfried"]
[Black "Mikes, Jan"]
[Result "0-1"]
[ECO "B52"]
[WhiteElo "2464"]
[BlackElo "2340"]
[Annotator "ChessBase"]
[PlyCount "102"]
[EventDate "2022.04.01"]
[EventType "team-tourn"]
[EventCountry "AUT"]
[SourceTitle "playchess.com"]
[Source "ChessBase"]
[SourceQuality "1"]
[TimeControl "40/5400+30:1800+30"]

1. e4 {[%emt 0:00:03]} c5 {[%emt 0:00:22]} 2. Nf3 {[%emt 0:00:07]} d6 {[%emt 0:00:05]} 3. Bb5+ {[%emt 0:01:02]} Bd7 {[%emt 0:00:27]} 4. Bxd7+ {[%emt 0:00:15]} Nxd7 {[%emt 0:00:06]} 5. O-O {[%emt 0:00:27]} Ngf6 {[%emt 0:00:48]} 6. Qe2 {[%emt 0:00:15]} e6 {[%emt 0:00:25]} 7. b3 {[%emt 0:01:39]} Be7 {[%emt 0:01:26]} 8. Bb2 {[%emt 0:00:05]} O-O {[%emt 0:00:28]} 9. c4 {[%emt 0:01:39]} Re8 {[%emt 0:11:22]} 10. d4 {[%emt 0:03:18]} cxd4 {[%emt 0:00:16]} 11. Nxd4 {[%emt 0:00:08]} Qb6 {[%emt 0:02:29]} 12. Rd1 {[%emt 0:08:36]} d5 {[%emt 0:15:05]} 13. e5 {[%emt 0:21:56]} Ne4 {[%emt 0:00:19]} 14. cxd5 {[%emt 0:10:41]} exd5 {[%emt 0:00:27]} 15. Nf5 {[%emt 0:03:49]} Bc5 {[%emt 0:07:46]} 16. Rxd5 {[%emt 0:02:13]} Bxf2+ {[%emt 0:18:06]} 17. Kf1 {[%emt 0:04:00]} Qe6 {[%emt 0:04:20]} 18. Qxe4 {[%emt 0:03:07]} Nf6 {[%emt 0:00:10]} 19. Qf3 {[%emt 0:05:46]} Nxd5 {[%emt 0:01:04]} 20. Kxf2 {[%emt 0:01:19]} Rad8 {[%emt 0:07:57]} 21. Nd2 {[%emt 0:13:30]} Nb4 {[%emt 0:04:19]} 22. Nd6 {[%emt 0:02:23]} Rxd6 {[%emt 0:01:34]} 23. exd6 {[%emt 0:00:23]} Qxd6 {[%emt 0:00:06]} 24. Qc3 {[%emt 0:09:38]} Nd3+ {[%emt 0:01:21]} 25. Kg1 {[%emt 0:05:24]} Qb6+ {[%emt 0:02:00]} 26. Qd4 {[%emt 0:00:05]} Nxb2 {[%emt 0:00:05]} 27. Qxb6 {[%emt 0:00:04]} axb6 {[%emt 0:00:04]} 28. Rb1 {[%emt 0:01:11]} Nd3 {[%emt 0:00:06]} 29. Nc4 {[%emt 0:00:06]} h5 {[%emt 0:05:32]} 30. Nxb6 {[%emt 0:01:22]} Re2 {[%emt 0:00:19]} 31. a4 {[%emt 0:00:12]} Nf4 {[%emt 0:00:35]} 32. Nc4 {[%emt 0:01:11]} Rxg2+ {[%emt 0:00:25]} 33. Kh1 {[%emt 0:00:02]} Re2 {[%emt 0:07:20]} 34. a5 {[%emt 0:00:07]} Nd3 {[%emt 0:01:05]} 35. b4 {[%emt 0:00:52]} Rc2 {[%emt 0:03:12]} 36. Ne3 {[%emt 0:00:45]} Ra2 {[%emt 0:00:25]} 37. Nc4 {[%emt 0:00:13]} h4 {[%emt 0:01:43]} 38. h3 {[%emt 0:00:27]} g5 {[%emt 0:03:50]} 39. b5 {[%emt 0:00:15]} g4 {[%emt 0:01:06]} 40. hxg4 {[%emt 0:00:21]} h3 {[%emt 0:00:05]} 41. a6 {[%emt 0:08:31]} bxa6 {[%emt 0:00:16]} 42. b6 {[%emt 0:00:21]} Rg2 {[%emt 0:01:35]} 43. Rf1 {[%emt 0:03:05]} Nf2+ {[%emt 0:00:05]} 44. Rxf2 {[%emt 0:00:04]} Rxf2 {[%emt 0:00:03]} 45. b7 {[%emt 0:00:12]} Rf1+ {[%emt 0:00:03]} 46. Kh2 {[%emt 0:00:05]} Rb1 {[%emt 0:00:02]} 47. Na5 {[%emt 0:00:13]} Kf8 {[%emt 0:00:27]} 48. Kxh3 {[%emt 0:00:08]} Ke8 {[%emt 0:00:07]} 49. Kh4 {[%emt 0:01:02]} Rb5 {[%emt 0:00:28]} 50. g5 {[%emt 0:01:04]} Kd7 {[%emt 0:00:17]} 51. Kh5 {[%emt 0:00:10]} Kc7 {[%emt 0:01:04]} 0-1

[Event "AUT 2nd BL Ost 2021-22"]
[Site "Austria"]
[Date "2022.04.04"]
[Round "11.2"]
[White "Bures, Jaroslav"]
[Black "Sadilek, Peter"]
[Result "1/2-1/2"]
[ECO "E48"]
[WhiteElo "2411"]
[BlackElo "2368"]
[Annotator "ChessBase"]
[PlyCount "147"]
[EventDate "2022.04.01"]
[EventType "team-tourn"]
[EventCountry "AUT"]
[SourceTitle "playchess.com"]
[Source "ChessBase"]
[SourceQuality "1"]
[TimeControl "40/5400+30:1800+30"]

1. d4 {[%emt 0:00:04]} Nf6 {[%emt 0:00:48]} 2. c4 {[%emt 0:00:07]} e6 {[%emt 0:00:35]} 3. Nc3 {[%emt 0:00:08]} Bb4 {[%emt 0:01:04]} 4. e3 {[%emt 0:00:44]} O-O {[%emt 0:00:37]} 5. Bd3 {[%emt 0:00:50]} d5 {[%emt 0:03:46]} 6. cxd5 {[%emt 0:00:39]} exd5 {[%emt 0:00:07]} 7. Nge2 {[%emt 0:00:06]} Re8 {[%emt 0:03:27]} 8. Bd2 {[%emt 0:01:07]} Bd6 {[%emt 0:04:33]} 9. Qc2 {[%emt 0:02:25]} a6 {[%emt 0:02:30]} 10. h3 {[%emt 0:02:08]} b6 {[%emt 0:07:44]} 11. g4 {[%emt 0:01:14]} Bb7 {[%emt 0:05:47]} 12. O-O-O {[%emt 0:10:22]} c5 {[%emt 0:05:39]} 13. g5 {[%emt 0:01:24]} Ne4 {[%emt 0:01:25]} 14. Bxe4 {[%emt 0:00:45]} dxe4 {[%emt 0:00:06]} 15. dxc5 {[%emt 0:00:28]} bxc5 {[%emt 0:09:42]} 16. Rhg1 {[%emt 0:01:52]} Nc6 {[%emt 0:10:50]} 17. Nd5 {[%emt 0:37:41]} Bh2 {[%emt 0:17:35]} 18. Qb3 {[%emt 0:07:33]} Bxg1 {[%emt 0:17:39]} 19. Rxg1 {[%emt 0:01:41]} Nd4 {[%emt 0:02:17]} 20. Nf6+ {[%emt 0:02:29]} Qxf6 {[%emt 0:00:27]} 21. gxf6 {[%emt 0:01:24]} Nxb3+ {[%emt 0:00:03]} 22. axb3 {[%emt 0:00:03]} g6 {[%emt 0:00:06]} 23. Nf4 {[%emt 0:00:06]} Bc6 {[%emt 0:02:09]} 24. Rg5 {[%emt 0:01:05]} Rac8 {[%emt 0:01:30]} 25. Bc3 {[%emt 0:05:23]} Bb7 {[%emt 0:00:29]} 26. h4 {[%emt 0:01:20]} h6 {[%emt 0:01:52]} 27. Rg1 {[%emt 0:00:01]} Kf8 {[%emt 0:00:41]} 28. h5 {[%emt 0:03:04]} g5 {[%emt 0:00:04]} 29. Ng6+ {[%emt 0:00:01]} fxg6 {[%emt 0:00:27]} 30. hxg6 {[%emt 0:00:01]} Bd5 {[%emt 0:00:56]} 31. Rh1 {[%emt 0:00:01]} Bf7 {[%emt 0:00:26]} 32. Rxh6 {[%emt 0:01:33]} Bxg6 {[%emt 0:00:02]} 33. Rxg6 {[%emt 0:00:03]} Kf7 {[%emt 0:00:24]} 34. Rg7+ {[%emt 0:02:20]} Ke6 {[%emt 0:00:35]} 35. Rxg5 {[%emt 0:00:03]} Kf7 {[%emt 0:01:02]} 36. Kd2 {[%emt 0:03:29]} Rg8 {[%emt 0:00:18]} 37. Re5 {[%emt 0:00:19]} Rge8 {[%emt 0:00:29]} 38. Rf5 {[%emt 0:00:33]} Rc6 {[%emt 0:00:44]} 39. Ke2 {[%emt 0:03:15]} Rb8 {[%emt 0:00:33]} 40. Re5 {[%emt 0:00:05]} Re8 {[%emt 0:00:05]} 41. Rh5 {[%emt 0:30:01]} Kg6 {[%emt 0:30:21]} 42. Rd5 {[%emt 0:00:32]} Rc7 {[%emt 0:00:19]} 43. Rd6 {[%emt 0:03:17]} Rb7 {[%emt 0:00:33]} 44. Rxa6 {[%emt 0:01:31]} Rxb3 {[%emt 0:00:05]} 45. Rc6 {[%emt 0:00:10]} Reb8 {[%emt 0:00:40]} 46. Rxc5 {[%emt 0:03:56]} Rxb2+ {[%emt 0:00:22]} 47. Bxb2 {[%emt 0:00:05]} Rxb2+ {[%emt 0:00:02]} 48. Kf1 {[%emt 0:00:26]} Kxf6 {[%emt 0:00:12]} 49. Kg2 {[%emt 0:00:04]} Ke6 {[%emt 0:02:12]} 50. Kg3 {[%emt 0:00:05]} Ra2 {[%emt 0:00:00]} 51. Rh5 {[%emt 0:00:00]} Rb2 {[%emt 0:00:00]} 52. Rh8 {[%emt 0:00:00]} Ke5 {[%emt 0:01:58]} 53. Re8+ {[%emt 0:00:00]} Kf5 {[%emt 0:00:00]} 54. Rf8+ {[%emt 0:00:00]} Ke5 {[%emt 0:00:00]} 55. Kg4 {[%emt 0:00:00]} Ra2 {[%emt 0:00:00]} 56. Re8+ {[%emt 0:00:00]} Kd5 {[%emt 0:00:00]} 57. Kg3 {[%emt 0:00:00]} Rb2 {[%emt 0:00:00]} 58. Rh8 {[%emt 0:00:00]} Ke5 {[%emt 0:00:00]} 59. Rh1 {[%emt 0:00:00]} Ra2 {[%emt 0:00:00]} 60. Re1 {[%emt 0:00:00]} Ra7 {[%emt 0:00:00]} 61. Kg2 {[%emt 0:00:00]} Rg7+ {[%emt 0:00:00]} 62. Kf1 {[%emt 0:00:00]} Ra7 {[%emt 0:00:00]} 63. Re2 {[%emt 0:00:00]} Ra1+ {[%emt 0:00:00]} 64. Kg2 {[%emt 0:00:00]} Ra7 {[%emt 0:00:00]} 65. Rb2 {[%emt 0:00:00]} Rg7+ {[%emt 0:00:00]} 66. Kf1 {[%emt 0:00:00]} Ra7 {[%emt 0:00:00]} 67. Ke2 {[%emt 0:00:00]} Ra1 {[%emt 0:00:00]} 68. Rd2 {[%emt 0:00:00]} Ra7 {[%emt 0:00:00]} 69. Rd8 {[%emt 0:00:00]} Ra2+ {[%emt 0:00:00]} 70. Kf1 {[%emt 0:00:00]} Rb2 {[%emt 0:00:00]} 71. Re8+ {[%emt 0:00:00]} Kf5 {[%emt 0:00:00]} 72. Kg2 {[%emt 0:00:00]} Ra2 {[%emt 0:00:00]} 73. Kg3 {[%emt 0:00:00]} Rb2 {[%emt 0:00:00]} 74. Rh8 {[%emt 0:01:56]} 1/2-1/2

[Event "AUT 2nd BL Ost 2021-22"]
[Site "Austria"]
[Date "2022.04.04"]
[Round "11.3"]
[White "Kaphle, Sebastian"]
[Black "Groetz, Harald"]
[Result "1/2-1/2"]
[ECO "B01"]
[WhiteElo "2345"]
[BlackElo "2308"]
[Annotator "ChessBase"]
[PlyCount "93"]
[EventDate "2022.04.01"]
[EventType "team-tourn"]
[EventCountry "AUT"]
[SourceTitle "playchess.com"]
[Source "ChessBase"]
[SourceQuality "1"]
[TimeControl "40/5400+30:1800+30"]

1. e4 {[%emt 0:00:08]} d5 {[%emt 0:00:13]} 2. exd5 {[%emt 0:00:25]} Qxd5 {[%emt 0:00:04]} 3. Nc3 {[%emt 0:00:26]} Qd6 {[%emt 0:00:03]} 4. d4 {[%emt 0:02:28]} Nf6 {[%emt 0:00:08]} 5. Nf3 {[%emt 0:01:48]} c6 {[%emt 0:00:06]} 6. Be3 {[%emt 0:09:16]} Bg4 {[%emt 0:04:23]} 7. h3 {[%emt 0:02:40]} Bh5 {[%emt 0:00:29]} 8. g4 {[%emt 0:01:59]} Bg6 {[%emt 0:00:11]} 9. Ne5 {[%emt 0:01:40]} Nd5 {[%emt 0:06:22]} 10. Qd2 {[%emt 0:19:55]} Nd7 {[%emt 0:11:12]} 11. Nxg6 {[%emt 0:05:30]} hxg6 {[%emt 0:01:56]} 12. O-O-O {[%emt 0:02:43]} e6 {[%emt 0:02:52]} 13. Kb1 {[%emt 0:08:46]} Nxc3+ {[%emt 0:11:34]} 14. Qxc3 {[%emt 0:03:07]} Nf6 {[%emt 0:00:04]} 15. Bg2 {[%emt 0:06:53]} Nd5 {[%emt 0:04:09]} 16. Qd3 {[%emt 0:03:09]} Be7 {[%emt 0:02:39]} 17. c4 {[%emt 0:04:56]} Nxe3 {[%emt 0:05:50]} 18. Qxe3 {[%emt 0:05:46]} O-O {[%emt 0:04:33]} 19. h4 {[%emt 0:04:17]} Qb4 {[%emt 0:09:47]} 20. h5 {[%emt 0:02:24]} g5 {[%emt 0:03:10]} 21. h6 {[%emt 0:07:52]} Qd6 {[%emt 0:03:31]} 22. hxg7 {[%emt 0:00:57]} Kxg7 {[%emt 0:00:31]} 23. Be4 {[%emt 0:01:10]} Rh8 {[%emt 0:00:34]} 24. Bc2 {[%emt 0:00:38]} Qf4 {[%emt 0:02:42]} 25. Qxf4 {[%emt 0:02:07]} gxf4 {[%emt 0:00:05]} 26. Be4 {[%emt 0:00:19]} Rxh1 {[%emt 0:03:28]} 27. Rxh1 {[%emt 0:00:16]} Rh8 {[%emt 0:00:02]} 28. Rxh8 {[%emt 0:00:50]} Kxh8 {[%emt 0:00:02]} 29. d5 {[%emt 0:00:43]} cxd5 {[%emt 0:00:13]} 30. cxd5 {[%emt 0:00:05]} b6 {[%emt 0:00:11]} 31. dxe6 {[%emt 0:01:07]} fxe6 {[%emt 0:00:04]} 32. Kc2 {[%emt 0:00:11]} Kg7 {[%emt 0:00:18]} 33. Kd3 {[%emt 0:00:44]} Kf6 {[%emt 0:00:09]} 34. f3 {[%emt 0:00:19]} Ke5 {[%emt 0:00:24]} 35. Kc4 {[%emt 0:00:05]} a5 {[%emt 0:01:05]} 36. Kb5 {[%emt 0:00:21]} Bc5 {[%emt 0:00:10]} 37. g5 {[%emt 0:00:17]} Kd6 {[%emt 0:00:54]} 38. Kc4 {[%emt 0:01:25]} Ke7 {[%emt 0:01:17]} 39. Bc2 {[%emt 0:00:12]} Kf7 {[%emt 0:00:46]} 40. Kb5 {[%emt 0:00:09]} Kg7 {[%emt 0:00:32]} 41. Kc6 {[%emt 0:30:20]} e5 {[%emt 0:30:44]} 42. a3 {[%emt 0:01:51]} Bd4 {[%emt 0:01:00]} 43. b3 {[%emt 0:00:40]} Bc5 {[%emt 0:00:32]} 44. b4 {[%emt 0:00:24]} axb4 {[%emt 0:00:23]} 45. a4 {[%emt 0:00:10]} Bd4 {[%emt 0:01:10]} 46. Kb5 {[%emt 0:00:05]} b3 {[%emt 0:00:29]} 47. Be4 {[%emt 0:01:39]} 1/2-1/2

[Event "AUT 2nd BL Ost 2021-22"]
[Site "Austria"]
[Date "2022.04.04"]
[Round "11.4"]
[White "Vrana, Frantisek"]
[Black "Sadilek, Maximilian"]
[Result "1/2-1/2"]
[ECO "A87"]
[WhiteElo "2239"]
[BlackElo "2263"]
[Annotator "ChessBase"]
[PlyCount "41"]
[EventDate "2022.04.01"]
[EventType "team-tourn"]
[EventCountry "AUT"]
[SourceTitle "playchess.com"]
[Source "ChessBase"]
[SourceQuality "1"]
[TimeControl "40/5400+30:1800+30"]

1. Nf3 {[%emt 0:00:14]} d6 {[%emt 0:00:21]} 2. d4 {[%emt 0:00:46]} f5 {[%emt 0:00:09]} 3. g3 {[%emt 0:00:53]} Nf6 {[%emt 0:00:06]} 4. Bg2 {[%emt 0:00:04]} g6 {[%emt 0:00:48]} 5. O-O {[%emt 0:00:33]} Bg7 {[%emt 0:00:07]} 6. c4 {[%emt 0:02:12]} O-O {[%emt 0:00:07]} 7. Nc3 {[%emt 0:00:03]} e6 {[%emt 0:01:49]} 8. Qc2 {[%emt 0:01:10]} Nc6 {[%emt 0:00:22]} 9. e4 {[%emt 0:03:41]} e5 {[%emt 0:17:17]} 10. dxe5 {[%emt 0:01:58]} dxe5 {[%emt 0:00:10]} 11. Rd1 {[%emt 0:02:11]} Nd4 {[%emt 0:13:36]} 12. Nxd4 {[%emt 0:03:42]} exd4 {[%emt 0:00:13]} 13. e5 {[%emt 0:00:38]} Ng4 {[%emt 0:01:23]} 14. f4 {[%emt 0:01:17]} c5 {[%emt 0:02:04]} 15. h3 {[%emt 0:01:04]} Nh6 {[%emt 0:00:05]} 16. Bd5+ {[%emt 0:04:04]} Kh8 {[%emt 0:00:14]} 17. Na4 {[%emt 0:00:10]} Qe7 {[%emt 0:02:05]} 18. b4 {[%emt 0:01:18]} cxb4 {[%emt 0:00:19]} 19. Rxd4 {[%emt 0:00:28]} Nf7 {[%emt 0:04:46]} 20. c5 {[%emt 0:10:31]} g5 {[%emt 0:24:26]} 21. Be3 {[%emt 0:05:18]} 1/2-1/2

[Event "AUT 2nd BL Ost 2021-22"]
[Site "Austria"]
[Date "2022.04.04"]
[Round "11.5"]
[White "Cu Hor, Winston Darwin"]
[Black "Hajek, Oskar"]
[Result "1-0"]
[ECO "A37"]
[WhiteElo "2337"]
[BlackElo "2190"]
[Annotator "ChessBase"]
[PlyCount "161"]
[EventDate "2022.04.01"]
[EventType "team-tourn"]
[EventCountry "AUT"]
[SourceTitle "playchess.com"]
[Source "ChessBase"]
[SourceQuality "1"]
[TimeControl "40/5400+30:1800+30"]

1. Nf3 {[%emt 0:00:05]} g6 {[%emt 0:00:14]} 2. g3 {[%emt 0:05:05]} Bg7 {[%emt 0:01:06]} 3. Bg2 {[%emt 0:00:52]} c5 {[%emt 0:01:43]} 4. O-O {[%emt 0:00:12]} Nc6 {[%emt 0:00:36]} 5. c4 {[%emt 0:00:13]} e6 {[%emt 0:01:15]} 6. Nc3 {[%emt 0:00:50]} d5 {[%emt 0:04:55]} 7. cxd5 {[%emt 0:01:49]} exd5 {[%emt 0:00:06]} 8. d4 {[%emt 0:02:48]} cxd4 {[%emt 0:02:30]} 9. Nb5 {[%emt 0:00:55]} Nge7 {[%emt 0:03:25]} 10. Nbxd4 {[%emt 0:09:42]} O-O {[%emt 0:00:46]} 11. Bg5 {[%emt 0:01:29]} Qb6 {[%emt 0:05:50]} 12. Nxc6 {[%emt 0:06:40]} Nxc6 {[%emt 0:00:14]} 13. Qxd5 {[%emt 0:00:46]} Qxb2 {[%emt 0:03:01]} 14. Rab1 {[%emt 0:11:20]} Qxe2 {[%emt 0:03:23]} 15. Rfe1 {[%emt 0:00:10]} Qa6 {[%emt 0:06:06]} 16. Bf1 {[%emt 0:00:21]} Qa5 {[%emt 0:05:15]} 17. Rb5 {[%emt 0:13:54]} Qc7 {[%emt 0:00:24]} 18. Qb3 {[%emt 0:00:25]} Be6 {[%emt 0:16:10]} 19. Rxb7 {[%emt 0:03:51]} Bxb3 {[%emt 0:00:41]} 20. Rxc7 {[%emt 0:00:17]} Bd5 {[%emt 0:01:37]} 21. Bg2 {[%emt 0:06:49]} Rac8 {[%emt 0:00:52]} 22. Rxc8 {[%emt 0:04:25]} Rxc8 {[%emt 0:00:07]} 23. a3 {[%emt 0:00:27]} a5 {[%emt 0:03:37]} 24. Rc1 {[%emt 0:02:11]} Bb2 {[%emt 0:04:53]} 25. Rc5 {[%emt 0:00:22]} Be4 {[%emt 0:04:21]} 26. Bc1 {[%emt 0:04:53]} Bxc1 {[%emt 0:04:07]} 27. Rxc1 {[%emt 0:00:01]} Na7 {[%emt 0:02:05]} 28. Re1 {[%emt 0:00:20]} Bxf3 {[%emt 0:02:02]} 29. Bxf3 {[%emt 0:00:15]} Nb5 {[%emt 0:00:38]} 30. Re7 {[%emt 0:08:35]} Rc5 {[%emt 0:07:35]} 31. Rd7 {[%emt 0:00:17]} Kf8 {[%emt 0:03:50]} 32. a4 {[%emt 0:08:05]} Nc3 {[%emt 0:00:20]} 33. Rd4 {[%emt 0:00:52]} Na2 {[%emt 0:03:45]} 34. Kg2 {[%emt 0:00:26]} Nb4 {[%emt 0:00:18]} 35. Rd8+ {[%emt 0:00:35]} Ke7 {[%emt 0:01:20]} 36. Ra8 {[%emt 0:00:03]} Nd5 {[%emt 0:04:47]} 37. Be2 {[%emt 0:00:49]} Nc7 {[%emt 0:01:20]} 38. Ra7 {[%emt 0:00:30]} Kd6 {[%emt 0:00:23]} 39. Rb7 {[%emt 0:02:19]} h5 {[%emt 0:00:57]} 40. h4 {[%emt 0:01:12]} Rc2 {[%emt 0:02:13]} 41. Bf3 {[%emt 0:33:55]} Rc4 {[%emt 0:02:33]} 42. Rb6+ {[%emt 0:00:00]} Ke7 {[%emt 0:02:32]} 43. Bd1 {[%emt 0:00:00]} Rc1 {[%emt 0:01:37]} 44. Be2 {[%emt 0:00:00]} Rc2 {[%emt 0:03:24]} 45. Kf3 {[%emt 0:00:00]} Rc3+ {[%emt 0:01:53]} 46. Ke4 {[%emt 0:00:00]} Rc2 {[%emt 0:02:10]} 47. Kf3 {[%emt 0:00:00]} Rc3+ {[%emt 0:02:43]} 48. Kg2 {[%emt 0:00:00]} Rc2 {[%emt 0:00:12]} 49. Bf1 {[%emt 0:00:00]} Rc3 {[%emt 0:04:07]} 50. Rb8 {[%emt 0:00:00]} Rc1 {[%emt 0:02:32]} 51. Rb3 {[%emt 0:00:00]} Rc5 {[%emt 0:00:51]} 52. Be2 {[%emt 0:00:00]} Kd6 {[%emt 0:01:16]} 53. Rd3+ {[%emt 0:00:00]} Rd5 {[%emt 0:01:16]} 54. Rf3 {[%emt 0:00:00]} f5 {[%emt 0:02:19]} 55. Rb3 {[%emt 0:00:00]} Kc5 {[%emt 0:01:06]} 56. Rc3+ {[%emt 0:00:00]} Kd6 {[%emt 0:01:19]} 57. Rb3 {[%emt 0:01:08]} Kc5 {[%emt 0:00:07]} 58. Rb8 {[%emt 0:00:12]} Re5 {[%emt 0:03:45]} 59. Bf3 {[%emt 0:02:12]} Re6 {[%emt 0:00:29]} 60. Bd1 {[%emt 0:01:47]} Rf6 {[%emt 0:00:39]} 61. Kf3 {[%emt 0:00:29]} Rd6 {[%emt 0:00:38]} 62. Bb3 {[%emt 0:00:33]} Rd4 {[%emt 0:01:17]} 63. Bf7 {[%emt 0:00:24]} Rxa4 {[%emt 0:02:03]} 64. Bxg6 {[%emt 0:00:14]} f4 {[%emt 0:00:57]} 65. gxf4 {[%emt 0:00:24]} Nd5 {[%emt 0:00:43]} 66. Rc8+ {[%emt 0:00:24]} Kd6 {[%emt 0:00:23]} 67. Rd8+ {[%emt 0:01:08]} Kc5 {[%emt 0:00:19]} 68. Rf8 {[%emt 0:00:25]} Ra3+ {[%emt 0:00:41]} 69. Kg2 {[%emt 0:00:07]} Ra4 {[%emt 0:00:46]} 70. Kg3 {[%emt 0:00:21]} Rb4 {[%emt 0:01:14]} 71. Bxh5 {[%emt 0:00:57]} a4 {[%emt 0:00:07]} 72. Bf3 {[%emt 0:02:10]} Nxf4 {[%emt 0:01:05]} 73. Rf5+ {[%emt 0:00:39]} Kd6 {[%emt 0:00:10]} 74. Ra5 {[%emt 0:00:32]} Ke7 {[%emt 0:00:52]} 75. Bd1 {[%emt 0:01:41]} Ng6 {[%emt 0:00:31]} 76. h5 {[%emt 0:00:26]} Nf4 {[%emt 0:00:21]} 77. h6 {[%emt 0:00:44]} Kf6 {[%emt 0:00:35]} 78. Ra6+ {[%emt 0:00:13]} Kg5 {[%emt 0:00:31]} 79. h7 {[%emt 0:00:31]} Rb8 {[%emt 0:00:38]} 80. Ra5+ {[%emt 0:01:48]} Kh6 {[%emt 0:00:07]} 81. Kxf4 {[%emt 0:00:10]} 1-0

[Event "AUT 2nd BL Ost 2021-22"]
[Site "Austria"]
[Date "2022.04.04"]
[Round "11.6"]
[White "Teuber, Andreas"]
[Black "Leitner, Gerald"]
[Result "1-0"]
[ECO "A58"]
[WhiteElo "2127"]
[BlackElo "2170"]
[Annotator "ChessBase"]
[PlyCount "49"]
[EventDate "2022.04.01"]
[EventType "team-tourn"]
[EventCountry "AUT"]
[SourceTitle "playchess.com"]
[Source "ChessBase"]
[SourceQuality "1"]
[TimeControl "40/5400+30:1800+30"]

1. d4 {[%emt 0:00:06]} Nf6 {[%emt 0:00:27]} 2. c4 {[%emt 0:00:07]} c5 {[%emt 0:00:54]} 3. d5 {[%emt 0:00:09]} b5 {[%emt 0:00:02]} 4. cxb5 {[%emt 0:00:10]} a6 {[%emt 0:00:34]} 5. bxa6 {[%emt 0:00:09]} Bxa6 {[%emt 0:00:16]} 6. Nc3 {[%emt 0:00:09]} d6 {[%emt 0:01:22]} 7. Nf3 {[%emt 0:00:12]} g6 {[%emt 0:00:01]} 8. g3 {[%emt 0:00:07]} Bg7 {[%emt 0:00:01]} 9. Bg2 {[%emt 0:00:09]} Nbd7 {[%emt 0:01:04]} 10. Rb1 {[%emt 0:00:19]} Nb6 {[%emt 0:01:38]} 11. b3 {[%emt 0:00:43]} Ra7 {[%emt 0:04:22]} 12. O-O {[%emt 0:04:59]} Qa8 {[%emt 0:03:06]} 13. Nh4 {[%emt 0:00:00]} O-O {[%emt 0:00:19]} 14. Bb2 {[%emt 0:00:00]} Ne8 {[%emt 0:08:07]} 15. Re1 {[%emt 0:00:00]} Nc7 {[%emt 0:00:38]} 16. e4 {[%emt 0:00:19]} Rb8 {[%emt 0:10:00]} 17. Qc2 {[%emt 0:08:31]} Nd7 {[%emt 0:12:51]} 18. Nf3 {[%emt 0:04:15]} c4 {[%emt 0:07:01]} 19. Na4 {[%emt 0:10:48]} Bb5 {[%emt 0:09:32]} 20. Bxg7 {[%emt 0:00:22]} Kxg7 {[%emt 0:00:02]} 21. Nc3 {[%emt 0:02:11]} Nc5 {[%emt 0:05:41]} 22. Nxb5 {[%emt 0:02:13]} Rxb5 {[%emt 0:07:16]} 23. Qxc4 {[%emt 0:02:06]} Rxa2 {[%emt 0:04:09]} 24. b4 {[%emt 0:00:49]} Ra4 {[%emt 0:00:16]} 25. Qc3+ {[%emt 0:00:14]} 1-0

[Event "AUT 2nd BL Ost 2021-22"]
[Site "Austria"]
[Date "2022.04.04"]
[Round "11.8"]
[White "Peyrer, Konstantin"]
[Black "Belke, Frank"]
[Result "1-0"]
[ECO "C16"]
[WhiteElo "2301"]
[BlackElo "2224"]
[Annotator "ChessBase"]
[PlyCount "71"]
[EventDate "2022.04.01"]
[EventType "team-tourn"]
[EventCountry "AUT"]
[SourceTitle "playchess.com"]
[Source "ChessBase"]
[SourceQuality "1"]
[TimeControl "40/5400+30:1800+30"]

1. e4 {[%emt 0:00:07]} e6 {[%emt 0:00:05]} 2. d4 {[%emt 0:00:04]} d5 {[%emt 0:00:04]} 3. Nc3 {[%emt 0:00:04]} Bb4 {[%emt 0:00:06]} 4. e5 {[%emt 0:00:05]} Qd7 {[%emt 0:00:04]} 5. a3 {[%emt 0:01:56]} Bxc3+ {[%emt 0:00:08]} 6. bxc3 {[%emt 0:00:04]} b6 {[%emt 0:00:03]} 7. Qg4 {[%emt 0:01:19]} f5 {[%emt 0:00:05]} 8. exf6 {[%emt 0:01:04]} Nxf6 {[%emt 0:00:06]} 9. Qh4 {[%emt 0:02:00]} O-O {[%emt 0:00:36]} 10. Nf3 {[%emt 0:00:17]} Ba6 {[%emt 0:00:05]} 11. Bxa6 {[%emt 0:01:50]} Nxa6 {[%emt 0:00:02]} 12. O-O {[%emt 0:00:26]} Qa4 {[%emt 0:02:37]} 13. Qh3 {[%emt 0:01:24]} Rae8 {[%emt 0:02:59]} 14. Ng5 {[%emt 0:01:36]} Qxc2 {[%emt 0:03:06]} 15. Nxe6 {[%emt 0:02:34]} Rf7 {[%emt 0:00:14]} 16. Bf4 {[%emt 0:01:17]} Rfe7 {[%emt 0:05:35]} 17. Ng5 {[%emt 0:03:23]} h6 {[%emt 0:15:11]} 18. Rac1 {[%emt 0:02:13]} Qg6 {[%emt 0:03:45]} 19. Nf3 {[%emt 0:02:17]} Qh5 {[%emt 0:07:48]} 20. Qxh5 {[%emt 0:05:15]} Nxh5 {[%emt 0:00:02]} 21. Be5 {[%emt 0:00:10]} c5 {[%emt 0:04:36]} 22. Nh4 {[%emt 0:08:04]} Kh7 {[%emt 0:04:53]} 23. Nf5 {[%emt 0:01:40]} Re6 {[%emt 0:01:35]} 24. f4 {[%emt 0:01:13]} Nf6 {[%emt 0:10:26]} 25. Nd6 {[%emt 0:04:30]} Rd8 {[%emt 0:05:51]} 26. Nb5 {[%emt 0:01:03]} Rd7 {[%emt 0:00:32]} 27. Rfe1 {[%emt 0:00:42]} Ng4 {[%emt 0:18:37]} 28. h3 {[%emt 0:08:41]} Nxe5 {[%emt 0:00:28]} 29. dxe5 {[%emt 0:00:30]} g6 {[%emt 0:03:33]} 30. Rcd1 {[%emt 0:00:49]} c4 {[%emt 0:04:47]} 31. Nd6 {[%emt 0:02:13]} Nc5 {[%emt 0:00:33]} 32. Rxd5 {[%emt 0:02:16]} Nd3 {[%emt 0:00:07]} 33. Re4 {[%emt 0:01:56]} b5 {[%emt 0:00:37]} 34. Rxb5 {[%emt 0:01:33]} Rdxd6 {[%emt 0:02:14]} 35. exd6 {[%emt 0:00:13]} Rxe4 {[%emt 0:00:06]} 36. Rb7+ {[%emt 0:00:28]} 1-0